Cogmind - Beta 9 @@@ ROGUE MODE // 2019.10.22 @ 18:55:49 Player: Alexbot Result: Escaped! Performance ------------- Evolutions (9) 4500 Regions Visited (31) 6200 Robots Destroyed (516) 2580 Value Destroyed (22695) 22695 Prototype IDs (122) 2440 Alien Tech Used (1) 200 Bonus (23423) 23423 TOTAL SCORE: 62038 Bonus ------- Triggered High Security 1500 Triggered Max Security 1000 High Alert Combat Kills 9792 Follower Combat Kills 2398 Network Hubs Disabled 200 Aligned with FarCom 300 Met Data Miner 300 Met Zhirov 300 Met Warlord at Base 500 MAIN.C Attacked Warlord 500 Warlord Defense Kill 30 Built Enhanced Grunts 300 A7 Reached Mainframe 300 Met R17 at Cetus 500 Met R17 at Research 2000 Met Warlord at Research 2000 Win 3000 Friendly Fire -1497 Cogmind --------- Core Integrity 1381/1600 Matter 300/300 Energy 851/860 System Corruption 13% Temperature Cool (60) Location To Epsilon Eridani Parts ------- Power (2) Micro Fission Core Light Quantum Reactor Propulsion (5) Combat Antigrav System Combat Antigrav System Cooled Linear Gravjet Combat Linear Gravjet Combat Linear Gravjet Utility (16) Experimental Coolant Injector Large Storage Unit Large Storage Unit Large Storage Unit Large Storage Unit Improved Energy Well Experimental Terrain Scanner Experimental Terrain Scan Processor Quantum Capacitor Experimental Transmission Jammer Improved Thermal Shield Improved Energy Mantle Improved Hacking Suite Improved System Shield Ghost Barrier Weapon (2) HERF Cannon Enhanced Nova Cannon Inventory (28) Advanced Energy Well (800) Matter Compressor (250) Particle Accelerator Advanced ECM Suite Experimental Propulsion Shielding Experimental Utility Shielding Improved Weapon Shielding Advanced Powered Armor Advanced Powered Armor Improved Focal Shield Experimental Shock Absorption System Advanced Force Field Transdimensional Reconstructor Gamma Rifle Advanced Variable Charge Gun Vortex Shotgun Vortex Shotgun Compact HERF Cannon Improved KE Penetrator Heavy Shock Bomb Launcher Mini Smartbomb Launcher Remote Datajack Peak State ------------ Power Micro Fission Core Light Quantum Reactor Propulsion Cooled Antigrav System Combat Antigrav System Combat Antigrav System Combat Linear Gravjet Combat Linear Gravjet Utility Experimental Coolant Injector Large Storage Unit Large Storage Unit Large Storage Unit Large Storage Unit Improved Energy Well Spectral Analyzer Experimental Terrain Scan Processor Advanced Reaction Control System Advanced Powered Armor Improved Focal Shield Improved Thermal Shield Advanced Force Field Hacking Suite Improved Hacking Suite Ghost Barrier Weapon Compact HERF Cannon Enhanced Nova Cannon Inventory Advanced Energy Well Matter Compressor Experimental Terrain Scanner Particle Accelerator Quantum Capacitor Experimental Transmission Jammer Advanced ECM Suite Experimental Propulsion Shielding Experimental Utility Shielding Improved Weapon Shielding Advanced Powered Armor Experimental Shock Absorption System Improved Energy Mantle Improved System Shield Transdimensional Reconstructor Advanced Variable Charge Gun Vortex Shotgun Vortex Shotgun HERF Cannon Improved KE Penetrator Improved KE Penetrator Heavy Shock Bomb Launcher Mini Smartbomb Launcher Remote Datajack Enhanced Flamer [Rating: 182] Favorites ----------- Power Micro Fission Core Engine Light Ion Engine Power Core Micro Fission Core Reactor Light Quantum Reactor Propulsion Centrium Heavy Treads Treads Centrium Heavy Treads Leg Armored Leg Wheel Armored Huge Wheel Hover Unit Combat Antigrav System Utility Large Storage Unit Device Experimental Terrain Scanner Storage Large Storage Unit Processor 0b10 Alert Chip Hackware Hacking Suite Protection Experimental Utility Shielding Weapon Improved KE Penetrator Energy Gun Precision Shock Rifle Energy Cannon Matter Neutralizer Ballistic Gun Improved KE Penetrator Ballistic Cannon Hardcell Cannon Launcher Mini Smartbomb Launcher Special Weapon Enhanced Flamer Special Melee Weapon Datajack Build | -11 -10 -10 -10 -9 -8 -8 -7 -7 -7 -7 -6 -6 -6 -6 -6 -6 -6 -6 -5 -5 -5 -5 -4 -4 -4 -4 -3 -3 -3 -2 -1 ------- Run | Scr Mat Min Exi Min Mat Sto Fac Low Low Dat Pro Fac Was Fac Ext Cet Arc Hub Fac Upp Upp Zhi Pro Fac Upp War Pro Res Tes Res Acc Slots Evolved 18 | . . . . . 4 . 2 . . . . 2 . . . . . . 2 . . . . 2 . . . 2 . 2 2 Power 1 | . . . . . . . . . . . . . . . . . . . . . . . . . . . . . . . 1 Propulsion 3 | . . . . . . . . . . . . . . . . . . . . . . . . 2 . . . 1 . . . Utility 14 | . . . . . 4 . 2 . . . . 2 . . . . . . 2 . . . . . . . . 1 . 2 1 Weapon . | . . . . . . . . . . . . . . . . . . . . . . . . . . . . . . . . Parts Attached 546 | 6 8 5 7 . 7 29 50 9 5 3 1 8 1 19 9 20 6 4 61 12 14 9 5 83 7 8 10 31 8 33 68 Power 25 | 1 1 1 . . . 2 6 . 2 . . 2 . 1 1 . 1 . . . . 1 . 3 . . . . . . 3 Engine 3 | 1 1 . . . . . . . 1 . . . . . . . . . . . . . . . . . . . . . . Core 18 | . . 1 . . . 2 6 . 1 . . 2 . 1 1 . 1 . . . . . . 3 . . . . . . . Reactor 4 | . . . . . . . . . . . . . . . . . . . . . . 1 . . . . . . . . 3 Propulsion 52 | 2 2 2 2 . 2 6 8 . . . . . . 2 1 1 1 . 2 . . 1 . 7 . 4 . 4 . . 5 Treads 28 | . 2 1 1 . 2 5 5 . . . . . . . . 1 1 . 2 . . 1 . 7 . . . . . . . Leg 6 | . . 1 1 . . 1 . . . . . . . 2 1 . . . . . . . . . . . . . . . . Wheel 3 | 2 . . . . . . 1 . . . . . . . . . . . . . . . . . . . . . . . . Hover 15 | . . . . . . . 2 . . . . . . . . . . . . . . . . . . 4 . 4 . . 5 Flight . | . . . . . . . . . . . . . . . . . . . . . . . . . . . . . . . . Utility 222 | 1 2 . 1 . 5 1 11 5 1 . 1 5 . 10 3 9 2 2 29 6 8 3 2 38 5 1 5 18 4 18 26 Device 111 | . . . . . . . 5 2 1 . 1 . . 5 2 1 1 2 12 3 6 2 2 17 2 1 4 9 2 13 18 Storage 34 | 1 2 . . . 1 . . . . . . . . 1 . 3 . . 4 2 1 1 . 5 2 . . 3 2 2 4 Processor 4 | . . . 1 . . . 1 . . . . . . 1 . . . . . . . . . . . . . . . . 1 Hackware 19 | . . . . . 2 . . . . . . 5 . . . . 1 . 4 . . . . 4 . . . 1 . . 2 Protection 54 | . . . . . 2 1 5 3 . . . . . 3 1 5 . . 9 1 1 . . 12 1 . 1 5 . 3 1 Artifact . | . . . . . . . . . . . . . . . . . . . . . . . . . . . . . . . . Weapon 247 | 2 3 2 4 . . 20 25 4 2 3 . 1 1 6 4 10 2 2 30 6 6 4 3 35 2 3 5 9 4 15 34 Energy Gun 21 | 2 1 . . . . 2 1 . . . . . . 3 2 5 . . . . . 1 . . . 1 2 1 . . . Energy Cannon 60 | . . . 1 . . 4 4 . . . . 1 . 2 2 . . . 7 2 . . . 10 1 1 2 5 . 2 16 Ballistic Gun 57 | . 2 1 2 . . 8 12 1 . . . . . . . . 2 1 8 2 3 2 1 2 . . . 2 1 3 4 Ballistic Cannon 24 | . . . . . . 4 3 2 1 2 . . . . . . . . 2 . . . . 10 . . . . . . . Launcher 55 | . . 1 . . . 2 5 1 1 . . . 1 . . 5 . 1 12 2 3 . 2 11 1 1 1 1 3 1 . Special Weapon 29 | . . . . . . . . . . 1 . . . 1 . . . . 1 . . 1 . 2 . . . . . 9 14 Impact Weapon . | . . . . . . . . . . . . . . . . . . . . . . . . . . . . . . . . Slashing Weapon . | . . . . . . . . . . . . . . . . . . . . . . . . . . . . . . . . Piercing Weapon . | . . . . . . . . . . . . . . . . . . . . . . . . . . . . . . . . Special Melee Weapon 1 | . . . 1 . . . . . . . . . . . . . . . . . . . . . . . . . . . . Unidentified Prototypes 29 | . . . 3 . . 4 5 . . . . . . 1 . 3 1 . 1 . . 4 . 2 . 2 . . . 2 1 Parts Lost 48 | . 6 1 . . . 9 3 4 3 . . 1 . 1 3 . 1 . . 1 1 . . 3 . . 2 . . . 9 Power 8 | . 1 . . . . 3 . . 2 . . . . . . . . . . . 1 . . . . . . . . . 1 Propulsion 8 | . 2 1 . . . 2 2 . . . . . . 1 . . . . . . . . . . . . . . . . . Utility 6 | . . . . . . . 1 2 1 . . . . . . . . . . . . . . 1 . . . . . . 1 Weapon 26 | . 3 . . . . 4 . 2 . . . 1 . . 3 . 1 . . 1 . . . 2 . . 2 . . . 7 Highest Loss Streak 5 | . 4 1 . . . 4 2 4 2 . . 1 . 1 1 . 1 . . 1 1 . . 3 . . 1 . . . 5 Average Slot Usage (%) 94 | . 97 99 100 100 98 91 98 89 87 84 91 87 93 93 97 94 92 93 93 89 90 81 94 88 89 95 99 99 100 99 98 Core 4 | . . 1 14 14 9 2 6 7 5 . . 3 6 6 6 6 6 6 5 5 3 . . 3 5 5 5 4 4 4 4 Treads 8 | . 20 27 27 28 18 17 14 . . . . . . . . 5 6 6 4 5 5 5 5 9 10 4 . . . . . Hover 3 | . . . . . . . . . . . . . . . . . . . . . . . . . . 12 21 23 23 21 20 Device 5 | . . . . . . . 7 12 11 15 14 4 . 1 6 . 1 6 4 9 8 7 14 3 8 10 8 8 2 9 15 Storage 18 | . 26 28 23 14 18 18 15 15 15 15 15 13 13 17 20 24 20 20 18 17 20 26 23 19 22 21 21 19 21 20 19 Processor 8 | . . . 4 14 9 9 7 7 7 7 7 6 6 8 13 13 13 13 11 11 11 11 11 10 10 10 10 9 9 8 6 Hackware 17 | . . . . . 16 18 15 15 15 15 15 36 46 34 20 20 17 13 24 18 17 17 17 20 10 10 10 13 13 8 13 Protection 7 | . . . . . 8 9 13 7 7 7 7 2 . 2 5 7 13 13 8 6 7 5 2 7 10 10 11 8 14 16 8 Energy Gun 1 | . 14 . . . . . . . . . . . . 2 8 10 2 . . . . . . . . . 5 4 . . . Energy Cannon 1 | . . . . . . . 1 . . . . 1 . 3 1 . . . 2 . . . . 1 1 4 2 2 . . 2 Ballistic Gun 6 | . 13 25 15 28 18 10 12 3 . . . . . . . . 10 12 5 8 10 . 9 . . . . . 7 1 1 Ballistic Cannon 2 | . . . . . . 2 1 10 14 1 15 8 6 5 . . . . . . . . . 4 5 5 1 . . . . Launcher 1 | . . 2 . . . 2 . . . . . . 5 . . 2 . . 1 1 . . 1 2 3 . . . . . . Naked Turns . | . . . . . . . . . . . . . . . . . . . . . . . . . . . . . . . . Heaviest Build 143 | 11 42 42 42 27 46 52 64 66 67 67 67 66 57 74 70 78 80 80 85 91 86 95 92 123 120 113 115 125 119 122 143 Greatest Support 154 | 20 40 40 40 40 40 44 44 28 28 28 28 28 28 36 36 80 80 80 80 80 80 80 80 150 150 150 97 132 140 140 154 Greatest Overweight (x) 3 | . 3 1 1 . 2 2 2 2 2 2 2 2 2 2 1 2 . . 1 1 1 1 1 1 . 1 1 1 . 1 1 Average Overweight (x) . | . . . . . 1 . . 1 2 1 2 1 1 1 1 . . . . 1 1 . 1 . . . 1 . . . . Largest Inventory Capacity 28 | 6 16 16 16 10 16 16 16 16 16 16 16 16 16 22 22 22 22 22 22 22 22 22 22 28 28 28 28 28 28 28 28 Average Capacity 20 | 4 14 16 14 10 15 16 16 16 16 16 16 16 16 19 22 22 22 22 22 22 22 22 22 25 28 28 28 28 28 28 28 Most Carried 28 | 4 12 16 16 10 12 16 16 16 16 16 16 16 16 21 19 22 22 22 22 22 22 22 22 28 28 28 28 28 27 28 28 Average Carried 19 | 2 5 13 14 9 10 15 15 14 15 15 15 14 16 18 16 21 20 21 19 21 21 21 21 23 28 27 26 26 26 27 26 Final Capacity 28 | . . . . . . . . . . . . . . . . . . . . . . . . . . . . . . . 28 Final Carried 22 | . . . . . . . . . . . . . . . . . . . . . . . . . . . . . . . 22 Class Distribution -------------------- 50% | Hacker-Mutant 9% | Mutant 7% | Scavenger-Mutant 7% | Wizard-Mutant 5% | Hacker-Scout 4% | Commander-Mutant 3% | Scavenger-Skirmisher 3% | Mechanic-Mutant Dominant Class ---------------- Mutant | -10/Materials Mutant | -10/Mines Mutant | -10/Exiles Mutant | -9/Mines Hacker-Mutant | -8/Materials Hacker-Mutant | -8/Storage Hacker-Mutant | -7/Factory Hacker-Mutant | -7/Lower Caves Hacker-Mutant | -7/Lower Caves Hacker-Mutant | -7/Data Miner Hacker-Mutant | -6/Proximity Caves Wizard-Mutant | -6/Factory Wizard-Mutant | -6/Waste Hacker-Mutant | -6/Factory Hacker-Mutant | -6/Extension Hacker-Mutant | -6/Cetus Scavenger-Mutant | -6/Archives Scavenger-Mutant | -6/Hub_04(d) Hacker-Mutant | -5/Factory Scavenger-Skirmisher | -5/Upper Caves Scavenger-Skirmisher | -5/Upper Caves Hacker-Mutant | -5/Zhirov Hacker-Skirmisher | -4/Proximity Caves Hacker-Mutant | -4/Factory Scavenger-Mutant | -4/Upper Caves Scavenger-Mutant | -4/Warlord Hauler-Mutant | -3/Proximity Caves Hacker-Scout | -3/Research Hacker-Mutant | -3/Testing Mechanic-Mutant | -2/Research Hacker-Scout | -1/Access Resources | -11 -10 -10 -10 -9 -8 -8 -7 -7 -7 -7 -6 -6 -6 -6 -6 -6 -6 -6 -5 -5 -5 -5 -4 -4 -4 -4 -3 -3 -3 -2 -1 ----------- Run | Scr Mat Min Exi Min Mat Sto Fac Low Low Dat Pro Fac Was Fac Ext Cet Arc Hub Fac Upp Upp Zhi Pro Fac Upp War Pro Res Tes Res Acc Matter Collected 17501 | 131 255 238 . 96 266 2247 1708 223 229 . 111 708 402 499 352 271 344 283 2223 595 406 99 291 2760 269 113 119 295 242 608 1118 Remotely . | . . . . . . . . . . . . . . . . . . . . . . . . . . . . . . . . Salvage Created 22707 | . 430 460 . 157 102 1886 2248 293 213 . . 722 402 145 821 370 312 560 2686 339 161 99 292 6562 383 5 346 688 170 513 1342 Parts 1005 | . 31 21 . 16 7 91 116 9 6 . . 42 . 8 35 14 31 37 127 6 1 3 21 271 14 2 15 26 8 9 38 Haulers Intercepted 12 | . . . . . . 4 1 . . . . 1 . . . . . . 2 . . . . 4 . . . . . . . Recyclers Shooed 7 | . . . . . . 2 . . . . . . . . . . . . . . . . . 5 . . . . . . . Parts Field Recycled . | . . . . . . . . . . . . . . . . . . . . . . . . . . . . . . . . Retrieved Matter . | . . . . . . . . . . . . . . . . . . . . . . . . . . . . . . . . Parts Self-Destructed 79 | . . . . . . . . 5 4 . . . . . . . . . . 2 1 3 12 . . 48 4 . . . . Prevented 48 | . . . . . . . . 4 1 . . . . . . . . . . 3 . . 6 . 14 9 11 . . . . Kills | -11 -10 -10 -10 -9 -8 -8 -7 -7 -7 -7 -6 -6 -6 -6 -6 -6 -6 -6 -5 -5 -5 -5 -4 -4 -4 -4 -3 -3 -3 -2 -1 ------- Run | Scr Mat Min Exi Min Mat Sto Fac Low Low Dat Pro Fac Was Fac Ext Cet Arc Hub Fac Upp Upp Zhi Pro Fac Upp War Pro Res Tes Res Acc Combat Hostiles Destroyed 373 | . 10 13 . 4 2 24 46 6 6 . . 12 2 2 9 8 . 7 53 6 5 . 10 88 5 1 6 7 4 11 26 Guns 102 | . 10 7 . 4 2 17 21 . . . . . . . 5 2 . 3 15 1 2 . 3 . . . 2 1 2 1 4 Cannons 80 | . . . . . . 6 8 1 3 . . 9 . 1 . . . . 6 . . . . 29 1 . 2 1 . 2 11 AOE 125 | . . 6 . . . . 17 4 1 . . 3 2 . 1 5 . 2 23 2 3 . 5 43 . 1 . 4 2 1 . Classes Destroyed 23 | . 2 4 . 1 . 6 3 1 . . . . 1 . . . . . 1 . 1 . . 1 . . . . . 2 . Worker 34 | . . . . . . 8 1 . . . . 2 . . . . . 2 7 . . . . 11 . . . . . . 3 Builder 39 | . . . . . . 2 3 . . . . . . 1 . . . 4 7 . . . . 17 . . . 3 1 . 1 Tunneler 3 | . . . . 1 . . . . . . . . . . . . . . 1 . . . . 1 . . . . . . . Hauler 12 | . . . . . . 4 1 . . . . 1 . . . . . . 2 . . . . 4 . . . . . . . Recycler 16 | . . 1 . . . 6 . . . . . . . . . . . . . . . . . 8 . . . 1 . . . Minesweeper 1 | . . . . . . . . 1 . . . . . . . . . . . . . . . . . . . . . . . Mechanic 9 | . . 1 . . . 2 2 . . . . . . . . . . . . . . . . 4 . . . . . . . Operator 13 | . 1 . . . . 3 . . . . . . . . . . 9 . . . . . . . . . . . . . . Drone 1 | . . . . . . . . . . . . . . . . . . . . . . . . 1 . . . . . . . Watcher 10 | . . . . . . 2 1 . . . . 2 . 1 1 . . . 1 . . . . 2 . . . . . . . Swarmer 67 | . . 5 . 3 . . 7 3 . . . . . . . 3 . . 9 2 . . 8 22 . . . . . 1 4 Saboteur 3 | . . . . . . . . . . . . . . . . . . . 1 . . . . 1 . 1 . . . . . Grunt 167 | . 10 6 . 1 2 16 26 1 3 . . 8 . 1 5 2 . 4 23 3 4 . . 29 2 . . 3 3 3 12 Brawler 8 | . . . . . . 1 2 1 . . . . . . . . . . 2 . . . . 1 . . . 1 . . . Duelist 16 | . . . . . . . 3 . 1 . . . . . . . . 1 2 . . . . 8 1 . . . . . . Protector 4 | . . . . . . . 1 . . . . . . . . . . . 2 . . . . 1 . . . . . . . Sentry 36 | . . 2 . . . 6 2 1 1 . . . . 1 2 . . 2 4 1 . . . 5 . . 1 1 . 4 3 Hunter 18 | . . . . . . 1 . . 1 . . 2 . . 2 . . . 2 . . . 2 4 2 . 2 . . . . Programmer 45 | . . . . . . . 6 . . . . 2 . . . . . . 8 . . . . 16 . . 3 1 1 1 7 Behemoth 3 | . . . . . . . . . . . . . . . . . . . . . 1 . . 1 . . . 1 . . . Compactor 2 | . . . . . . . . . . . . . 2 . . . . . . . . . . . . . . . . . . Cetus Guard 3 | . . . . . . . . . . . . . . . . 3 . . . . . . . . . . . . . . . Striker 1 | . . . . . . . . . . . . . . . . . . . . . . . . . . . . . . 1 . Executioner 1 | . . . . . . . . . . . . . . . . . . . . . . . . . . . . . . 1 . Thug 1 | . . . . 1 . . . . . . . . . . . . . . . . . . . . . . . . . . . Savage 1 | . . . . . . . . . . . . . . . 1 . . . . . . . . . . . . . . . . Guerrilla 2 | . . . . . . . . . . . . . . . 2 . . . . . . . . . . . . . . . . Best Kill Streak 14 | . 3 7 . 4 2 4 12 6 4 . . 6 1 2 3 4 2 8 8 6 4 . 5 14 3 1 3 9 5 2 4 Combat Bots Only 12 | . 3 6 . 3 2 3 9 6 4 . . 3 1 1 2 4 . 4 7 6 4 . 5 12 3 1 3 5 4 2 4 Max Kills in Single Turn 6 | . 1 3 . 1 1 1 4 2 1 . . 3 1 1 3 3 1 2 3 1 1 . 4 6 1 1 1 2 1 1 2 Gunslinging 1 | . . 1 . . . . . . . . . . . . . . . . 1 . . . . . . . . . . . . Exploded 5 | . . 3 . . . . 4 2 1 . . 3 1 . 1 3 . 1 2 1 1 . 4 5 . 1 . 1 1 1 . Melee . | . . . . . . . . . . . . . . . . . . . . . . . . . . . . . . . . Uniques/NPCs Destroyed . | . . . . . . . . . . . . . . . . . . . . . . . . . . . . . . . . Combat | -11 -10 -10 -10 -9 -8 -8 -7 -7 -7 -7 -6 -6 -6 -6 -6 -6 -6 -6 -5 -5 -5 -5 -4 -4 -4 -4 -3 -3 -3 -2 -1 -------- Run | Scr Mat Min Exi Min Mat Sto Fac Low Low Dat Pro Fac Was Fac Ext Cet Arc Hub Fac Upp Upp Zhi Pro Fac Upp War Pro Res Tes Res Acc Damage Taken 19745 | . 597 138 . 43 . 1737 2307 635 293 . . 401 25 215 751 206 236 550 2757 576 294 . 316 3375 276 23 703 239 161 516 2375 Core 2233 | . 46 30 . . . 196 404 40 69 . . 70 25 37 229 65 122 . 239 27 11 . 8 307 14 23 38 . 14 . 219 Absorbed by Shields 4369 | . . . . . . . . . . . . . . . . 174 . . 86 100 114 . 292 1097 298 . 269 153 58 380 1348 Reduced by Siege Mode 528 | . . . . . . . . . . . . . . . . . . 31 98 12 22 . 21 304 40 . . . . . . Core Remaining (%) 71 | 100 . . . 69 . 64 . . . . 26 . . . . . . 35 . . . . 71 . . . 66 . 98 100 86 Volleys Fired 1627 | . 50 20 . 10 6 302 182 21 19 1 . 58 28 26 52 17 34 27 206 12 18 14 16 213 14 3 20 36 8 54 160 Largest 2 | . 2 2 . 2 2 2 2 1 2 1 . 2 1 2 2 2 2 2 2 2 2 1 2 2 2 1 2 2 2 2 2 Hottest 171 | . 80 43 . 46 46 103 65 65 130 30 . 155 36 155 145 115 115 70 155 105 80 80 80 171 105 105 171 120 80 160 160 Shots Fired 2261 | . 96 37 . 20 12 391 272 20 35 1 1 63 28 37 75 23 66 44 265 19 27 13 22 252 15 3 28 40 11 94 251 Gun 1007 | . 96 34 . 20 12 225 190 . . . . . . 10 58 14 66 39 109 10 20 9 15 2 . . 11 13 6 6 42 Cannon 679 | . . . . . . 95 60 12 31 . 1 63 . 23 17 . . . 97 5 . . . 173 6 2 16 22 . 2 54 Launcher 326 | . . 3 . . . 71 22 8 4 . . . 28 . . 9 . 5 59 4 7 . 7 73 9 1 1 5 5 5 . Special 249 | . . . . . . . . . . 1 . . . 4 . . . . . . . 4 . 4 . . . . . 81 155 Kinetic 1164 | . 40 34 . 20 12 282 219 12 31 . 1 58 . 17 . . 52 39 118 10 20 . 15 122 3 . 3 2 6 6 42 Thermal 591 | . 56 . . . . 26 31 . . . . 5 . 6 17 . . . 88 5 . 9 . 48 3 2 3 18 . 76 198 Explosive 188 | . . 3 . . . 71 10 . . . . . 28 . . 4 . . 42 . 7 . 2 15 . 1 . . 5 . . Electromagnetic 276 | . . . . . . 12 12 8 4 . . . . 10 58 19 14 5 17 4 . . 5 63 9 . 11 9 . 5 11 Entropic 22 | . . . . . . . . . . . . . . . . . . . . . . . . . . . 11 11 . . . Robot Hit Streak 49 | . 15 12 . 17 7 17 21 8 7 3 4 13 19 7 21 10 10 11 32 13 9 18 4 29 4 4 4 3 2 49 15 Robot Miss Streak 9 | . 4 3 . 2 1 3 5 1 3 . . 3 3 3 2 1 2 1 2 1 1 1 3 3 1 . 7 9 1 3 5 Penetration Max 1 | . . . . . . . . . . . . . . . . . 1 1 1 . . . . 1 . . . . . . 1 Secondary Targets 17 | . 1 2 . . . . 4 . . . . . . . 1 . . 1 3 1 . . 2 . . . 1 . . . 1 Max Gunslinging Chain 1 | . 1 1 . . . . 1 . . . . . . . 1 . . 1 1 1 . . 1 . . . 1 . . . 1 Capacitor 4 | . . . . . . . . . . . . . . . . . . . . . . . . . . . . . . . 4 Shots Hit Robots 1338 | . 68 24 11 10 9 176 169 16 19 1 1 44 21 19 49 11 48 23 104 7 13 12 11 182 7 1 20 13 3 78 168 Core Hits 927 | . 24 24 . 8 4 89 105 14 10 . . 35 6 6 24 21 20 25 111 6 11 2 10 217 6 1 11 17 10 43 67 Critical Hits 117 | . 1 1 . 1 . 4 3 . . . . 6 . . . . 4 4 11 . 2 . . 67 2 . 1 1 1 . 8 Critical Kills 45 | . 1 . . . . 2 2 . . . . 4 . . . . 2 1 4 . . . . 26 1 . . . 1 . 1 Critical Parts Destroyed 65 | . . 1 . 1 . 1 1 . . . . 1 . . . . 2 3 6 . 1 . . 38 1 . 1 1 . . 7 Melee Attacks 11 | . . . 11 . . . . . . . . . . . . . . . . . . . . . . . . . . . . Impact . | . . . . . . . . . . . . . . . . . . . . . . . . . . . . . . . . Slashing . | . . . . . . . . . . . . . . . . . . . . . . . . . . . . . . . . Piercing . | . . . . . . . . . . . . . . . . . . . . . . . . . . . . . . . . Sneak Attacks 11 | . . . 11 . . . . . . . . . . . . . . . . . . . . . . . . . . . . Combat Hostiles . | . . . . . . . . . . . . . . . . . . . . . . . . . . . . . . . . Follow-up Attacks . | . . . . . . . . . . . . . . . . . . . . . . . . . . . . . . . . Damage Inflicted 59004 | . 725 689 . 185 122 4013 5595 744 999 . 30 2218 2718 472 1300 1018 1143 1166 9887 529 1222 318 900 14733 526 149 1005 1418 801 1217 3162 Guns 13745 | . 725 335 . 185 122 2339 2417 . . . . . . 118 988 245 1143 568 1711 112 296 318 130 48 . . 513 269 56 86 1021 Cannons 11413 | . . . . . . 1065 941 376 779 . 30 1831 . 354 64 . . . 1191 . . . . 3260 38 . 450 227 . . 807 Explosions 31620 | . . 354 . . . 604 2237 368 220 . . 387 2718 . 248 773 . 598 6985 417 926 . 770 11383 488 149 42 922 685 346 . Melee . | . . . . . . . . . . . . . . . . . . . . . . . . . . . . . . . . Ramming 107 | . . . . . . 5 . . . . . . . . . . . . . . . . . 42 . . . . 60 . . Kinetic 17254 | . 300 335 . 185 122 2599 3132 376 779 . 30 1657 . 263 . . 907 568 2071 112 296 . 130 2111 38 . 80 . 56 86 1021 Thermal 10202 | . 425 . . . . 703 739 69 40 . . 174 . 91 312 . . 88 1074 . . 318 . 2747 . . 90 646 . 849 1837 Explosive 17523 | . . 354 . . . 454 1079 . . . . . 2718 . . 600 . . 5031 . 926 . 559 4968 . 149 . . 685 . . Electromagnetic 13136 | . . . . . . 252 645 299 180 . . 387 . 118 988 418 236 510 1711 417 . . 211 4865 488 . 322 503 . 282 304 Impact . | . . . . . . . . . . . . . . . . . . . . . . . . . . . . . . . . Slashing . | . . . . . . . . . . . . . . . . . . . . . . . . . . . . . . . . Piercing . | . . . . . . . . . . . . . . . . . . . . . . . . . . . . . . . . Entropic 782 | . . . . . . . . . . . . . . . . . . . . . . . . . . . 513 269 . . . Highest Corruption 35 | . 1 1 1 1 . 3 6 7 7 7 7 . 28 28 33 34 34 35 15 17 17 17 17 7 7 7 4 1 2 . 13 Average Corruption 9 | . 1 1 1 1 . 3 3 6 7 7 7 . 16 28 30 33 34 34 10 15 17 17 17 3 7 7 3 1 1 . 7 Corruption Purged . | . . . . . . . . . . . . . . . . . . . . . . . . . . . . . . . . Effects 855 | . 3 5 4 . . 48 35 17 19 5 6 . 16 81 84 36 50 54 145 32 22 20 27 62 8 1 3 3 . . 69 Message Errors 149 | . 1 . 3 . . 10 7 9 5 1 . . 1 14 14 4 2 9 21 9 5 2 2 15 1 1 . 2 . . 11 Matter Fused 134 | . . . . . . 12 9 3 1 1 2 . 2 14 11 4 3 8 21 4 4 8 5 12 2 . . . . . 8 Heat Flow Errors 69 | . . . . . . 7 2 2 3 . . . 3 4 2 2 4 1 17 1 1 2 1 9 1 . . . . . 7 Energy Discharges 74 | . . 2 . . . 5 5 . 3 1 3 . 1 5 7 3 . 3 15 2 2 1 3 5 1 . . 1 . . 6 Parts Rejected 6 | . . . . . . . 1 . . . . . . 1 1 . 1 . 1 . . . . 1 . . . . . . . Data Loss (minor) 87 | . . 1 1 . . 5 5 1 4 2 . . 1 4 9 4 5 3 15 2 2 1 2 8 3 . 1 . . . 8 Data Loss (major) 24 | . . . . . . . . . 1 . . . 2 2 2 3 1 1 3 . 1 1 3 1 . . . . . . 3 Misfires 21 | . . . . . . . 1 . 1 . 1 . . 5 2 1 . 1 5 4 . . . . . . . . . . . Alerts 4 | . . . . . . . . . . . . . . 1 . . . 1 1 1 . . . . . . . . . . . Misdirections 69 | . . . . . . . . . . . . . 1 20 8 5 5 4 8 5 2 2 4 . . . . . . . 5 Targeting Errors 184 | . 2 2 . . . 6 3 1 1 . . . 5 10 24 7 27 19 31 4 4 2 5 10 . . 1 . . . 20 Weapon Failures 34 | . . . . . . 3 2 1 . . . . . 1 4 3 2 4 7 . 1 1 2 1 . . 1 . . . 1 Overload Shots . | . . . . . . . . . . . . . . . . . . . . . . . . . . . . . . . . Overflow Damage 1902 | . . . . . . 47 92 39 39 . . 120 . . . 6 . 6 310 15 54 . 5 946 . 29 . 82 80 12 20 Projectiles 415 | . . . . . . 12 25 21 39 . . 120 . . . . . . 17 . . . . 127 . . . 34 . . 20 Explosions 1483 | . . . . . . 35 67 18 . . . . . . . 6 . 6 293 15 54 . 5 815 . 29 . 48 80 12 . Melee 4 | . . . . . . . . . . . . . . . . . . . . . . . . 4 . . . . . . . Knockbacks 54 | . . . . . . 11 2 2 8 . 1 11 . 2 . . . . 3 . . . . 14 . . . . . . . Impact 1 | . . . . . . . . . . . . . . . . . . . . . . . . 1 . . . . . . . Kinetic 48 | . . . . . . 10 2 2 7 . 1 9 . 2 . . . . 3 . . . . 12 . . . . . . . Secondary 5 | . . . . . . 1 . . 1 . . 2 . . . . . . . . . . . 1 . . . . . . . Self-Inflicted Damage 1647 | . . . . . . 201 87 189 . . . . 25 . . . . 69 523 87 . . 9 343 60 . 11 13 30 . . Shots 75 | . . . . . . 11 6 8 . . . . 1 . . . . 1 14 4 . . 1 20 7 . 1 1 . . . Rammed 7 | . . . . . . 1 . . . . . . . . . . . . . . . . . 5 . . . . 1 . . Targets Rammed 7 | . . . . . . 1 . . . . . . . . . . . . . . . . . 5 . . . . 1 . . Kicked . | . . . . . . . . . . . . . . . . . . . . . . . . . . . . . . . . Crushed . | . . . . . . . . . . . . . . . . . . . . . . . . . . . . . . . . Highest Temperature 425 | . 168 6 . 20 4 258 307 121 228 . 5 164 236 425 251 347 269 230 270 128 155 260 255 359 244 38 216 152 42 40 319 Average Temperature 79 | . 34 1 . 8 1 65 95 66 136 . 5 29 102 105 68 75 111 42 83 49 36 120 98 112 85 19 58 36 21 15 98 Received Heat Transfer 3747 | . 273 48 . . . 711 681 36 42 . . 117 . 84 135 18 36 189 376 133 42 . . 362 10 . 43 16 20 42 333 Effects 13 | . . . . . . . 1 . . . . . . 3 . . 4 . 2 . . . . 2 . . . . . . 1 Energy Bleed 3 | . . . . . . . . . . . . . . 1 . . . . . . . . . 2 . . . . . . . Interference 10 | . . . . . . . 1 . . . . . . 2 . . 4 . 2 . . . . . . . . . . . 1 Siege Activations 32 | . . . . . . . . . . . . . . . . . . 2 9 1 2 . 3 13 2 . . . . . . Total Turns 515 | . . . . . . . . . . . . . . . . . . 42 93 7 38 . 28 285 22 . . . . . . Longest Duration 85 | . . . . . . . . . . . . . . . . . . 22 21 7 24 . 18 85 14 . . . . . . Robots Corrupted 49 | . . . . . . 1 . 1 2 . . . . 1 3 1 . 2 9 3 . . 2 16 4 . 2 1 . . 1 Combat Hostiles 49 | . . . . . . 1 . 1 2 . . . . 1 3 1 . 2 9 3 . . 2 16 4 . 2 1 . . 1 Parts Fried 115 | . . . . . . 1 3 1 5 . . 2 . 1 5 4 . 3 19 4 . . 3 51 7 . 2 1 . . 3 Impact Corruptions 1 | . . . . . . . . . . . . . . . . . . . . . . . . 1 . . . . . . . Robots Melted 18 | . . . . . . . . . . . . . . . . . . . 1 . . . . . . . . . . 7 10 Combat Hostiles 17 | . . . . . . . . . . . . . . . . . . . . . . . . . . . . . . 7 10 Parts Melted 44 | . 1 . . . . 1 . . . . . . . . . . . . 6 . . . . . . . . . . 13 23 Heat Transferred 23667 | . 975 . . . . 1400 659 100 50 . . 185 . 111 300 . . 250 1300 . . 333 . 2149 . . 74 561 . 5570 9650 Parts Sabotaged . | . . . . . . . . . . . . . . . . . . . . . . . . . . . . . . . . Parts Stolen . | . . . . . . . . . . . . . . . . . . . . . . . . . . . . . . . . Parts Stripped . | . . . . . . . . . . . . . . . . . . . . . . . . . . . . . . . . Power Chain Reactions 18 | . . . . . . 1 4 1 1 . . . . . 1 . . 1 . . . . . 5 . . . 3 . 1 . Missiles Intercepted . | . . . . . . . . . . . . . . . . . . . . . . . . . . . . . . . . Alert | -11 -10 -10 -10 -9 -8 -8 -7 -7 -7 -7 -6 -6 -6 -6 -6 -6 -6 -6 -5 -5 -5 -5 -4 -4 -4 -4 -3 -3 -3 -2 -1 ------- Run | Scr Mat Min Exi Min Mat Sto Fac Low Low Dat Pro Fac Was Fac Ext Cet Arc Hub Fac Upp Upp Zhi Pro Fac Upp War Pro Res Tes Res Acc Peak Influence 3799 | . 160 185 . 266 108 1739 1822 . . . . 737 320 315 213 386 278 615 2600 . . . . 3799 . . . 207 1751 1280 791 Average Influence 691 | . 62 73 . 50 85 900 981 . . . . 300 301 49 72 173 213 281 958 . . . . 1338 . . . 71 1664 1155 327 Maximum Alert Level 5 | . . . . 1 . 5 5 . . . . 3 1 2 1 1 1 2 5 . . . . 5 . . . 1 5 4 3 Low Security (%) 37 | . . . . . . . . . . . . . . . . . . . . . . . . . . . . . . . . Level 1 13 | . . . . . . . . . . . . . . . . . . . . . . . . . . . . . . . . Level 2 5 | . . . . . . . . . . . . . . . . . . . . . . . . . . . . . . . . Level 3 19 | . . . . . . . . . . . . . . . . . . . . . . . . . . . . . . . . Level 4 10 | . . . . . . . . . . . . . . . . . . . . . . . . . . . . . . . . Level 5 12 | . . . . . . . . . . . . . . . . . . . . . . . . . . . . . . . . High Security . | . . . . . . . . . . . . . . . . . . . . . . . . . . . . . . . . Max Security . | . . . . . . . . . . . . . . . . . . . . . . . . . . . . . . . . Squads Dispatched 109 | . 3 2 . . 2 6 17 . . . . 8 . 1 2 . . 3 21 . . . . 36 . . . 4 . . 4 Investigation 13 | . . 1 . . 1 1 2 . . . . 2 . . . . . . 2 . . . . 1 . . . 2 . . 1 Extermination 19 | . . . . . . . 5 . . . . 2 . . . . . . 3 . . . . 7 . . . . . . 2 Reinforcement 40 | . 3 . . . 1 4 5 . . . . 4 . 1 2 . . 3 7 . . . . 7 . . . 2 . . 1 Assault 31 | . . 1 . . . 1 4 . . . . . . . . . . . 8 . . . . 17 . . . . . . . Garrison 6 | . . . . . . . 1 . . . . . . . . . . . 1 . . . . 4 . . . . . . . Intercept . | . . . . . . . . . . . . . . . . . . . . . . . . . . . . . . . . Construction Impeded 12 | . . . . . . . 1 . . . . . . . . . . 1 5 . . . . 4 . . . 1 . . . Haulers Reinforced 9 | . . . . . . . 2 . . . . 2 . 1 . . . . 1 . . . . 1 . . . 1 . . 1 Stealth | -11 -10 -10 -10 -9 -8 -8 -7 -7 -7 -7 -6 -6 -6 -6 -6 -6 -6 -6 -5 -5 -5 -5 -4 -4 -4 -4 -3 -3 -3 -2 -1 --------- Run | Scr Mat Min Exi Min Mat Sto Fac Low Low Dat Pro Fac Was Fac Ext Cet Arc Hub Fac Upp Upp Zhi Pro Fac Upp War Pro Res Tes Res Acc Distress Signals 36 | . . . . . 1 5 2 . 1 . . 1 . . 3 2 . 1 . . . . . 5 . . . 5 . 6 4 Communications Jammed 106 | . . . . . . . . . . . . . . . . . . 3 2 . . . . 21 . . . 1 . . 79 Distress Signals 106 | . . . . . . . . . . . . . . . . . . 3 2 . . . . 21 . . . 1 . . 79 Times Spotted 649 | . 25 14 . 10 10 58 73 9 9 . . 20 6 5 18 21 20 14 59 7 4 . 11 131 5 4 7 16 10 20 63 Peak Tracking Total 15 | . 3 5 . 4 6 4 9 7 5 . . 4 4 2 5 5 2 5 5 6 3 . 5 15 3 3 4 3 6 6 6 Tactical Retreats 41 | . 2 . . . . 1 7 1 2 . . . 1 . . . . 3 4 1 . . 1 8 . . 1 . 1 1 7 Traps | -11 -10 -10 -10 -9 -8 -8 -7 -7 -7 -7 -6 -6 -6 -6 -6 -6 -6 -6 -5 -5 -5 -5 -4 -4 -4 -4 -3 -3 -3 -2 -1 ------- Run | Scr Mat Min Exi Min Mat Sto Fac Low Low Dat Pro Fac Was Fac Ext Cet Arc Hub Fac Upp Upp Zhi Pro Fac Upp War Pro Res Tes Res Acc Traps Triggered 15 | . 2 . . . 1 . 2 . . . . 1 . . 3 . . . . . . . . 3 . . . 3 . . . Indirectly . | . . . . . . . . . . . . . . . . . . . . . . . . . . . . . . . . Trap Hack Attempts . | . . . . . . . . . . . . . . . . . . . . . . . . . . . . . . . . Triggered . | . . . . . . . . . . . . . . . . . . . . . . . . . . . . . . . . Disarmed . | . . . . . . . . . . . . . . . . . . . . . . . . . . . . . . . . Reprogrammed . | . . . . . . . . . . . . . . . . . . . . . . . . . . . . . . . . Reused . | . . . . . . . . . . . . . . . . . . . . . . . . . . . . . . . . Traps Extracted . | . . . . . . . . . . . . . . . . . . . . . . . . . . . . . . . . Installed . | . . . . . . . . . . . . . . . . . . . . . . . . . . . . . . . . Triggered 17 | . . . . . . . . 2 1 . . . . . . . . . . . 3 . . . . 11 . . . . . Machines | -11 -10 -10 -10 -9 -8 -8 -7 -7 -7 -7 -6 -6 -6 -6 -6 -6 -6 -6 -5 -5 -5 -5 -4 -4 -4 -4 -3 -3 -3 -2 -1 ---------- Run | Scr Mat Min Exi Min Mat Sto Fac Low Low Dat Pro Fac Was Fac Ext Cet Arc Hub Fac Upp Upp Zhi Pro Fac Upp War Pro Res Tes Res Acc Machines Disabled 129 | . . 1 . 1 . 30 7 1 . . . 5 . 2 4 . 2 8 31 . . . . 32 . . . 3 . 1 1 Max in Single Turn 5 | . . 1 . 1 . 1 2 1 . . . 4 . 1 1 . . 4 5 . . . . 4 . . . 2 . 1 1 Garrison Access 18 | . . . . . . 1 1 . . . . . . 1 . . . 1 2 . . . . 3 . . . 1 . 4 4 Network Hub 1 | . . . . . . . . . . . . . . . . . . 1 . . . . . . . . . . . . . Machines Sabotaged . | . . . . . . . . . . . . . . . . . . . . . . . . . . . . . . . . Garrisons Compromised . | . . . . . . . . . . . . . . . . . . . . . . . . . . . . . . . . Overloaded Fab Kills . | . . . . . . . . . . . . . . . . . . . . . . . . . . . . . . . . Fab Network Shutdowns 4 | . . . . . . . . . . . . 1 . 1 . . . . 1 . . . . 1 . . . . . . . Hacking | -11 -10 -10 -10 -9 -8 -8 -7 -7 -7 -7 -6 -6 -6 -6 -6 -6 -6 -6 -5 -5 -5 -5 -4 -4 -4 -4 -3 -3 -3 -2 -1 --------- Run | Scr Mat Min Exi Min Mat Sto Fac Low Low Dat Pro Fac Was Fac Ext Cet Arc Hub Fac Upp Upp Zhi Pro Fac Upp War Pro Res Tes Res Acc Machines Accessed 131 | . 1 2 2 1 3 9 11 1 . 4 . 5 . 6 10 3 . 2 12 1 . 4 . 19 . 2 . 11 . 3 19 Terminals 67 | . 1 1 . . 3 7 4 . . . . 3 . 3 10 3 . 1 7 . . . . 10 . . . 4 . . 10 Fabricators 15 | . . . . . . . 3 . . . . 2 . 1 . . . . 1 . . . . 2 . . . 2 . 1 3 Repair Stations 12 | . . . . . . 1 1 . . . . . . 1 . . . . 2 . . . . 4 . . . 2 . . 1 Recycling Units 1 | . . . . . . . . . . . . . . . . . . . . . . . . . . . . . . . 1 Scanalyzers 2 | . . . . . . . 1 . . . . . . . . . . . . . . . . . . . . 1 . . . Garrison Access 18 | . . . . . . 1 2 . . . . . . 1 . . . 1 2 . . . . 3 . . . 2 . 2 4 Total Hacks 568 | . 1 2 8 1 12 36 31 1 . 25 . 33 . 28 28 12 . 6 75 1 . 17 . 95 . 2 . 74 . 9 71 Successful 403 | . 1 2 8 1 5 17 26 1 . 25 . 22 . 21 22 8 . 4 57 1 . 17 . 71 . 2 . 42 . 5 45 Failed 162 | . . . . . 7 19 5 . . . . 10 . 7 6 4 . 2 17 . . . . 23 . . . 32 . 4 26 Catastrophic 18 | . . . . . 2 2 . . . . . 1 . 1 . . . . 1 . . . . 3 . . . 2 . . 6 Database Lockouts 3 | . . . . . . . . . . . . 1 . . . . . . 1 . . . . 1 . . . . . . . Manual 199 | . . . 2 . 11 22 4 . . . . 21 . 14 21 12 . 5 26 . . . . 33 . 1 . 10 . . 17 Terminals 302 | . 1 1 . . 12 32 13 . . . . 23 . 20 28 12 . 5 42 . . . . 45 . . . 27 . . 41 Fabricators 78 | . . . . . . . 7 . . . . 10 . 4 . . . . 5 . . . . 18 . . . 10 . 5 19 Repair Stations 87 | . . . . . . 2 2 . . . . . . 3 . . . . 24 . . . . 28 . . . 23 . . 5 Recycling Units 1 | . . . . . . . . . . . . . . . . . . . . . . . . . . . . . . . 1 Scanalyzers 15 | . . . . . . . 6 . . . . . . . . . . . . . . . . . . . . 9 . . . Garrison Access 29 | . . . . . . 2 3 . . . . . . 1 . . . 1 4 . . . . 4 . . . 5 . 4 5 Terminal Hacks 202 | . 1 2 8 1 4 10 9 1 . 25 . 10 . 13 15 5 . 2 21 1 . 17 . 23 . 2 . 10 . . 22 Record 24 | . . . 8 . . . . . . 11 . . . . . . . . . . . 5 . . . . . . . . . Part Schematic 34 | . . . . . 1 2 1 . . 6 . 2 . 2 2 . . . 3 . . 4 . 7 . . . 2 . . 2 Robot Schematic 5 | . . . . . . . . . . 5 . . . . . . . . . . . . . . . . . . . . . Robot Analysis 12 | . . . . . . 3 . . . . . 2 . 1 1 . . . 1 . . 4 . . . . . . . . . Prototype ID Bank 27 | . . . . . . 1 1 . . 3 . . . . 3 . . . 2 . . 4 . 4 . . . 3 . . 6 Open Door 10 | . . 1 . 1 . 2 . 1 . . . . . . . 1 . . . 1 . . . . . 2 . . . . 1 Level Access Points 2 | . . . . . . . . . . . . . . . . . . . . . . . . . . . . 1 . . 1 Branch Access Points 9 | . 1 . . . 1 . 1 . . . . 1 . 1 . . . . 1 . . . . 2 . . . 1 . . . Emergency Access Points 3 | . . . . . 1 . 1 . . . . . . . . . . . . . . . . 1 . . . . . . . Machine Index 4 | . . . . . . . 1 . . . . . . 1 . . . . 1 . . . . 1 . . . . . . . Terminal Index 1 | . . . . . . . . . . . . . . . . . . . . . . . . . . . . . . . 1 Fabricator Index 3 | . . . . . . . . . . . . 1 . 1 . . . . . . . . . . . . . . . . 1 Repair Station Index 1 | . . . . . . . . . . . . . . . . . . . . . . . . . . . . . . . 1 Alert Level 3 | . . . . . . . . . . . . . . . . . . . 1 . . . . . . . . . . . 2 Unreport Threat 18 | . . . . . . . . . . . . . . 4 1 3 . . 4 . . . . . . . . 1 . . 5 Locate Traps 9 | . . . . . . 1 1 . . . . . . 1 4 . . . 1 . . . . 1 . . . . . . . Dispatch Records 2 | . . 1 . . . . . . . . . . . . . . . . 1 . . . . . . . . . . . . Assault Status 3 | . . . . . . . . . . . . . . . . 1 . 1 . . . . . 1 . . . . . . . Recall Investigation 4 | . . . . . 1 . . . . . . 1 . . . . . . 1 . . . . 1 . . . . . . . Recall Reinforcements 8 | . . . . . . . . . . . . 1 . 1 2 . . 1 3 . . . . . . . . . . . . Recall Assault 3 | . . . . . . . . . . . . . . . . . . . . . . . . 3 . . . . . . . Hauler Manifests 7 | . . . . . . . 1 . . . . 2 . . . . . . 1 . . . . 1 . . . 1 . . 1 Registered Prototypes 4 | . . . . . . . . . . . . . . . . . . . 1 . . . . 1 . . . 1 . . 1 Zone Layout 6 | . . . . . . 1 2 . . . . . . 1 2 . . . . . . . . . . . . . . . . Fabricator Hacks 49 | . . . . . . . 5 . . . . 7 . 4 . . . . 4 . . . . 12 . . . 5 . 3 9 Network Status 8 | . . . . . . . . . . . . 1 . . . . . . . . . . . 6 . . . . . . 1 Load Schematic 18 | . . . . . . . 1 . . . . 3 . 2 . . . . 2 . . . . 3 . . . 3 . 1 3 Build 23 | . . . . . . . 4 . . . . 3 . 2 . . . . 2 . . . . 3 . . . 2 . 2 5 Repair Station Hacks 66 | . . . . . . 2 2 . . . . . . 1 . . . . 23 . . . . 21 . . . 14 . . 3 Scan Component 37 | . . . . . . 1 1 . . . . . . 1 . . . . 12 . . . . 11 . . . 9 . . 2 Repair 29 | . . . . . . 1 1 . . . . . . . . . . . 11 . . . . 10 . . . 5 . . 1 Recycling Unit Hacks 1 | . . . . . . . . . . . . . . . . . . . . . . . . . . . . . . . 1 Process 1 | . . . . . . . . . . . . . . . . . . . . . . . . . . . . . . . 1 Scanalyzer 12 | . . . . . . . 6 . . . . . . . . . . . . . . . . . . . . 6 . . . Insert Component 7 | . . . . . . . 3 . . . . . . . . . . . . . . . . . . . . 4 . . . Analyze 5 | . . . . . . . 3 . . . . . . . . . . . . . . . . . . . . 2 . . . Garrison Access Hacks 13 | . . . . . . 1 . . . . . . . 1 . . . 1 1 . . . . 2 . . . 1 . 2 4 Seal Access 12 | . . . . . . . . . . . . . . 1 . . . 1 1 . . . . 2 . . . 1 . 2 4 Coupler Status 1 | . . . . . . 1 . . . . . . . . . . . . . . . . . . . . . . . . . Unauthorized Hacks 143 | . . . . . 2 9 8 . . . . 13 . 4 17 7 . 4 17 . . . . 31 . . . 14 . . 17 Terminals 48 | . . . . . 1 3 2 . . . . 3 . 2 7 3 . 1 6 . . . . 9 . . . 6 . . 5 Track 1 | . . . . . . . . . . . . . . . . 1 . . . . . . . . . . . . . . . Assimilate 16 | . . . . . 1 . . . . . . 1 . 1 . . . 1 2 . . . . 4 . . . 3 . . 3 Botnet 23 | . . . . . . 1 2 . . . . 2 . 1 4 2 . . 2 . . . . 4 . . . 3 . . 2 Disrupt 6 | . . . . . . 1 . . . . . . . . 3 . . . 1 . . . . 1 . . . . . . . Operators 2 | . . . . . . 1 . . . . . . . . . . . . 1 . . . . . . . . . . . . Fabricators 7 | . . . . . . . . . . . . 2 . . . . . . 1 . . . . 3 . . . . . . 1 Report 1 | . . . . . . . . . . . . . . . . . . . . . . . . 1 . . . . . . . Siphon 6 | . . . . . . . . . . . . 2 . . . . . . 1 . . . . 2 . . . . . . 1 Repair Stations . | . . . . . . . . . . . . . . . . . . . . . . . . . . . . . . . . Recycling Units . | . . . . . . . . . . . . . . . . . . . . . . . . . . . . . . . . Scanalyzers . | . . . . . . . . . . . . . . . . . . . . . . . . . . . . . . . . Garrison Access 5 | . . . . . . 1 2 . . . . . . . . . . . 1 . . . . 1 . . . . . . . Reprogram 1 | . . . . . . . . . . . . . . . . . . . . . . . . 1 . . . . . . . Jam 3 | . . . . . . 1 1 . . . . . . . . . . . 1 . . . . . . . . . . . . Eject 1 | . . . . . . . 1 . . . . . . . . . . . . . . . . . . . . . . . . Data Cores Recovered . | . . . . . . . . . . . . . . . . . . . . . . . . . . . . . . . . Used . | . . . . . . . . . . . . . . . . . . . . . . . . . . . . . . . . Hacking Detections 73 | . . . . . 2 6 9 . . . . 5 . 5 5 2 . 1 7 . . . . 10 . . . 10 . 1 10 Full Trace Events 4 | . . . . . . . . . . . . 1 . . . . . . . . . . . . . . . 2 . . 1 Feedback Events . | . . . . . . . . . . . . . . . . . . . . . . . . . . . . . . . . Feedback Blocked . | . . . . . . . . . . . . . . . . . . . . . . . . . . . . . . . . Robot Schematics Acquired 5 | . . . . . . . . . . 5 . . . . . . . . . . . . . . . . . . . . . Robots Built . | . . . . . . . . . . . . . . . . . . . . . . . . . . . . . . . . Matter . | . . . . . . . . . . . . . . . . . . . . . . . . . . . . . . . . Time . | . . . . . . . . . . . . . . . . . . . . . . . . . . . . . . . . Total Robot Build Rating . | . . . . . . . . . . . . . . . . . . . . . . . . . . . . . . . . Part Schematics Acquired 38 | . . . . . 1 2 4 . . 6 . 1 . 2 2 . . . 3 . . 4 . 7 . . . 4 . . 2 Parts Built 27 | . . . . . . . 6 . . . . 3 . 2 . . . . 2 . . . . 3 . . . 3 . 2 6 Matter 4788 | . . . . . . . 760 . . . . 714 . 603 . . . . 451 . . . . 668 . . . 512 . 292 788 Time 1605 | . . . . . . . 243 . . . . 330 . 321 . . . . 106 . . . . 233 . . . 84 . 146 142 Total Part Build Rating 154 | . . . . . . . 34 . . . . 18 . 11 . . . . 11 . . . . 20 . . . 24 . 6 30 Parts Repaired 29 | . . . . . . 1 1 . . . . . . . . . . . 11 . . . . 10 . . . 5 . . 1 Time 1522 | . . . . . . 38 19 . . . . . . . . . . . 659 . . . . 570 . . . 210 . . 26 Parts Recycled . | . . . . . . . . . . . . . . . . . . . . . . . . . . . . . . . . Recycled Matter 9 | . . . . . . . . . . . . . . . . . . . . . . . . . . . . . . . 9 Retrieved Matter . | . . . . . . . . . . . . . . . . . . . . . . . . . . . . . . . . Retrieved Components . | . . . . . . . . . . . . . . . . . . . . . . . . . . . . . . . . Parts Scanalyzed 5 | . . . . . . . 3 . . . . . . . . . . . . . . . . . . . . 2 . . . Part Schematics Acquired 5 | . . . . . . . 3 . . . . . . . . . . . . . . . . . . . . 2 . . . Parts Damaged . | . . . . . . . . . . . . . . . . . . . . . . . . . . . . . . . . Bothacking | -11 -10 -10 -10 -9 -8 -8 -7 -7 -7 -7 -6 -6 -6 -6 -6 -6 -6 -6 -5 -5 -5 -5 -4 -4 -4 -4 -3 -3 -3 -2 -1 ------------ Run | Scr Mat Min Exi Min Mat Sto Fac Low Low Dat Pro Fac Was Fac Ext Cet Arc Hub Fac Upp Upp Zhi Pro Fac Upp War Pro Res Tes Res Acc Used RIF Installer . | . . . . . . . . . . . . . . . . . . . . . . . . . . . . . . . . Robots Hacked 25 | . . . 11 . . . . . . 1 . . . 1 . . . . . . . 3 . 3 . . . . . 6 . Non-combat 5 | . . . 3 . . . . . . . . . . . . . . . . . . . . 2 . . . . . . . Combat 20 | . . . 8 . . . . . . 1 . . . 1 . . . . . . . 3 . 1 . . . . . 6 . Robot Hacks Applied 25 | . . . 11 . . . . . . 1 . . . 1 . . . . . . . 3 . 3 . . . . . 6 . parse_system 23 | . . . 11 . . . . . . 1 . . . 1 . . . . . . . 3 . 1 . . . . . 6 . no_distress 1 | . . . . . . . . . . . . . . . . . . . . . . . . 1 . . . . . . . find_chute 1 | . . . . . . . . . . . . . . . . . . . . . . . . 1 . . . . . . . Relay Couplers Released 18 | . . . . . . . 4 . . . . . . . . . . . 3 . . . . 2 . . . 4 . 5 . Ejected 4 | . . . . . . . 4 . . . . . . . . . . . . . . . . . . . . . . . . Machine Destruction 7 | . . . . . . . . . . . . . . . . . . . 3 . . . . 2 . . . . . 2 . Programmers 7 | . . . . . . . . . . . . . . . . . . . . . . . . . . . . 4 . 3 . Robots Rewired 11 | . . . . . . . . 2 . . . . . . 9 . . . . . . . . . . . . . . . . Allies Hacked . | . . . . . . . . . . . . . . . . . . . . . . . . . . . . . . . . Hacks Repelled 1 | . . . . . . . 1 . . . . . . . . . . . . . . . . . . . . . . . . Allies | -11 -10 -10 -10 -9 -8 -8 -7 -7 -7 -7 -6 -6 -6 -6 -6 -6 -6 -6 -5 -5 -5 -5 -4 -4 -4 -4 -3 -3 -3 -2 -1 -------- Run | Scr Mat Min Exi Min Mat Sto Fac Low Low Dat Pro Fac Was Fac Ext Cet Arc Hub Fac Upp Upp Zhi Pro Fac Upp War Pro Res Tes Res Acc Total Allies 53 | . . 1 . 5 . 10 . 2 . . 1 1 . 1 16 5 . 1 2 . . . . 3 . . . 2 . . 3 Largest Group 12 | . . 1 . 5 1 10 4 2 2 1 2 3 . 1 8 12 9 4 2 . . . . 2 . . . 2 . . 2 Highest-Rated Group 804 | . . 31 . 88 8 173 75 36 36 20 114 140 . 10 362 804 586 310 20 . . . . 54 . . . 70 . . 88 Highest-Rated Ally 156 | . . 31 . 31 8 29 29 20 20 20 94 94 . 10 156 156 156 94 10 . . . . 44 . . . 44 . . 44 Total Orders 72 | . . . . . . 7 1 . . . . 4 . 14 4 . 2 9 2 . 4 . . 9 . . . 2 . . 14 STAY 14 | . . . . . . 2 . . . . . . . 3 . . . 2 1 . . . . . . . . 1 . . 5 GOTO 23 | . . . . . . . . . . . . 2 . 3 2 . 1 3 . . 2 . . 7 . . . . . . 3 FOLLOW 24 | . . . . . . 3 . . . . . 1 . 3 2 . 1 4 1 . . . . 2 . . . 1 . . 6 EXPLORE 6 | . . . . . . 2 1 . . . . 1 . . . . . . . . 2 . . . . . . . . . . RETURN 5 | . . . . . . . . . . . . . . 5 . . . . . . . . . . . . . . . . . Ally Attacks 533 | . . 17 . 31 2 99 28 6 10 . . 25 . 19 67 107 38 36 . . . . . 48 . . . . . . . Total Damage 11578 | . . 253 . 332 24 1354 383 88 147 . . 826 . 404 1342 2786 1126 1524 . . . . . 989 . . . . . . . Kills 86 | . . 1 . 7 . 17 3 1 1 . . 9 . 3 6 11 5 13 . . . . . 9 . . . . . . . Allies Corrupted . | . . . . . . . . . . . . . . . . . . . . . . . . . . . . . . . . Allies Melted . | . . . . . . . . . . . . . . . . . . . . . . . . . . . . . . . . Intel | -11 -10 -10 -10 -9 -8 -8 -7 -7 -7 -7 -6 -6 -6 -6 -6 -6 -6 -6 -5 -5 -5 -5 -4 -4 -4 -4 -3 -3 -3 -2 -1 ------- Run | Scr Mat Min Exi Min Mat Sto Fac Low Low Dat Pro Fac Was Fac Ext Cet Arc Hub Fac Upp Upp Zhi Pro Fac Upp War Pro Res Tes Res Acc Robot Analysis Total 12 | . . . . . . 3 . . . . . 2 . 1 1 . . . 1 . . 4 . . . . . . . . . Derelict Logs Recovered 4 | . . 1 . 1 . . . 1 . . . . . . . . . . . . 1 . . . . . . . . . . Drone Launches 34 | . . . . . . 8 . . . . . 14 . 6 1 . . . . . 3 . . 2 . . . . . . . Drone Recoveries 5 | . . . . . . . . . . . . . . 5 . . . . . . . . . . . . . . . . . Exploration | -11 -10 -10 -10 -9 -8 -8 -7 -7 -7 -7 -6 -6 -6 -6 -6 -6 -6 -6 -5 -5 -5 -5 -4 -4 -4 -4 -3 -3 -3 -2 -1 ------------- Run | Scr Mat Min Exi Min Mat Sto Fac Low Low Dat Pro Fac Was Fac Ext Cet Arc Hub Fac Upp Upp Zhi Pro Fac Upp War Pro Res Tes Res Acc Turns Passed 31492 | 52 661 1117 694 580 580 4051 2921 459 423 125 335 959 258 1021 932 422 346 509 3791 602 446 319 349 3795 333 677 421 995 90 851 2378 Spaces Moved 17425 | 49 330 619 376 308 292 1844 1228 316 290 107 269 550 182 588 430 203 141 169 1448 298 195 167 152 1601 166 524 319 1016 112 730 2406 Core 11 | 11 . . . . . . . . . . . . . . . . . . . . . . . . . . . . . . . Treads 9548 | . 199 619 376 308 292 1844 1226 . . . . . . . . 183 141 169 1448 298 195 167 152 1601 166 164 . . . . . Legs 518 | . . . . . . . . . . . . . . 68 430 20 . . . . . . . . . . . . . . . Wheels 2405 | 38 131 . . . . . 2 316 290 107 269 550 182 520 . . . . . . . . . . . . . . . . . Hover 4943 | . . . . . . . . . . . . . . . . . . . . . . . . . . 360 319 1016 112 730 2406 Flight . | . . . . . . . . . . . . . . . . . . . . . . . . . . . . . . . . Fastest Speed 22 | 50 80 160 160 160 180 145 120 110 120 110 120 110 110 110 155 155 160 160 160 180 180 160 180 160 170 22 72 26 29 29 29 Average Speed 127 | 73 132 165 172 160 180 151 178 119 120 110 120 116 110 122 155 161 160 160 165 180 180 160 180 168 170 109 87 55 40 44 50 Slowest Speed 210 | 80 180 180 180 160 200 185 210 120 120 120 120 120 120 155 155 185 160 160 180 180 180 180 180 210 170 170 88 100 46 104 104 Overloaded Moves 323 | . . . . . . . . . . . . . . . . . . . . . . . . . . 32 5 61 42 106 77 Propulsion Burnouts . | . . . . . . . . . . . . . . . . . . . . . . . . . . . . . . . . Robots Hopped . | . . . . . . . . . . . . . . . . . . . . . . . . . . . . . . . . Cave-ins Triggered 1 | . . . . . . . . . . . . . . . 1 . . . . . . . . . . . . . . . . Exploration Rate (%) 50 | 4 51 90 67 62 22 98 36 53 59 72 49 20 91 17 65 77 77 23 28 52 70 60 33 44 41 78 48 27 19 32 50 Regions Visited 31 Branch Regions 20 Pre-discovered Areas 5 | . . 1 . . . . . . . 1 . . . . . . . . . . . 3 . . . . . . . . . Known Exits Taken 8 | . 1 . . . 1 . 1 . . . . . . 1 . . . . 1 . . . . 1 . . . 1 1 . . Unknown Exits Taken 21 | 1 . 1 1 1 . 1 . 1 1 1 1 . . . 1 1 1 1 . 1 1 1 1 . 1 1 1 . . 1 . Scrap Searched 20 | . . 2 . 1 . . . 3 1 . 3 . . . . . . . . 3 3 . 2 . 1 . 1 . . . . Spaces Dug 211 | . . . . . . 52 7 . 5 . . 5 . 8 4 . . 1 51 3 4 . 5 13 3 2 . 21 . 2 25 Terrain Destroyed 2286 | . . 23 . . . 441 88 5 14 . . 13 111 12 16 38 10 172 641 13 113 . 35 390 3 25 20 32 34 6 31 Melee . | . . . . . . . . . . . . . . . . . . . . . . . . . . . . . . . . Projectile 336 | . . . . . . 17 11 1 9 . . 13 . 12 15 . 10 13 85 13 11 . 10 28 3 2 20 28 1 3 31 AOE 1950 | . . 23 . . . 424 77 4 5 . . . 111 . 1 38 . 159 556 . 102 . 25 362 . 23 . 4 33 3 . Actions | -11 -10 -10 -10 -9 -8 -8 -7 -7 -7 -7 -6 -6 -6 -6 -6 -6 -6 -6 -5 -5 -5 -5 -4 -4 -4 -4 -3 -3 -3 -2 -1 --------- Run | Scr Mat Min Exi Min Mat Sto Fac Low Low Dat Pro Fac Was Fac Ext Cet Arc Hub Fac Upp Upp Zhi Pro Fac Upp War Pro Res Tes Res Acc Total 24313 | 65 458 675 410 380 337 2750 1772 375 329 113 282 811 211 858 615 267 195 359 2549 350 258 210 202 2415 197 625 431 1403 142 1091 3178 Wait 4051 | . 52 22 1 61 25 519 240 12 14 . 9 163 1 197 62 6 5 158 798 8 16 . 26 434 11 71 65 294 11 260 510 Move 17391 | 48 329 618 375 307 291 1843 1227 315 289 106 268 550 181 587 428 202 140 168 1447 297 194 166 151 1600 165 523 318 1012 112 729 2405 Hop . | . . . . . . . . . . . . . . . . . . . . . . . . . . . . . . . . Pick Up 375 | 10 17 8 8 1 8 33 40 9 2 1 2 14 . 17 8 11 6 1 25 10 8 11 2 51 . 11 9 21 1 10 20 Fast Attach . | . . . . . . . . . . . . . . . . . . . . . . . . . . . . . . . . Attach 154 | 6 7 1 1 . 7 10 11 4 3 2 1 3 . 7 5 1 4 . 11 4 2 6 . 23 . 4 2 11 1 3 14 Detach 29 | . . . . . . . 1 . . 1 1 . . 3 1 1 2 . 2 3 . 1 . 7 . . . 1 1 . 4 Swap 393 | . 1 4 6 . . 19 39 5 2 1 . 5 1 12 4 19 2 4 50 8 12 4 5 60 7 4 8 20 7 30 54 Drop 204 | 1 2 2 8 1 . 18 32 4 . 1 1 11 . 9 2 10 2 1 10 8 7 8 2 21 . 9 9 8 1 5 11 Fire 1627 | . 50 20 . 10 6 302 182 21 19 1 . 58 28 26 52 17 34 27 206 12 18 14 16 213 14 3 20 36 8 54 160 Melee 11 | . . . 11 . . . . . . . . . . . . . . . . . . . . . . . . . . . . Ram . | . . . . . . . . . . . . . . . . . . . . . . . . . . . . . . . . Kick . | . . . . . . . . . . . . . . . . . . . . . . . . . . . . . . . . Crush 6 | . . . . . . 1 . . . . . . . . . . . . . . . . . 5 . . . . . . . Escape Stasis 16 | . . . . . . . . . . . . . . . 16 . . . . . . . . . . . . . . . . Rewire 42 | . . . . . . 1 . 5 . . . . . . 36 . . . . . . . . . . . . . . . . Trap . | . . . . . . . . . . . . . . . . . . . . . . . . . . . . . . . . Miscellaneous 14 | . . . . . . 4 . . . . . 7 . . 1 . . . . . 1 . . 1 . . . . . . . Route ------- -11/Scrapyard -10/Materials (discovered 2 exits: [*Mat] / *Min) -10/Mines (discovered 2 exits: [*Mat] / *Exi) -10/Exiles -9/Mines -8/Materials -8/Storage (discovered 2 exits: *Fac / Rec) -7/Factory (discovered 3 exits: *Fac / *Low x2) -7/Lower Caves -7/Lower Caves -7/Data Miner -6/Proximity Caves -6/Factory (discovered 5 exits: *Fac / Low x2 / *Ext x2) -6/Waste -6/Factory (discovered 4 exits: Low x2 / *Ext x2) -6/Extension (discovered 2 exits: *Fac / *Cet) -6/Cetus (discovered 2 exits: *Fac / [*Arc]) -6/Archives (discovered 3 exits: *Fac / *Hub x2) -6/Hub_04(d) -5/Factory (discovered 4 exits: *Fac x2 / *Upp x2) -5/Upper Caves -5/Upper Caves (discovered 2 exits: Fac / *Zhi) -5/Zhirov -4/Proximity Caves -4/Factory (discovered 4 exits: *Res / *Upp x2 / Arm) -4/Upper Caves (discovered 2 exits: [Upp] / *War) -4/Warlord -3/Proximity Caves -3/Research (discovered 5 exits: *Res x3 / *Tes x2) -3/Testing -2/Research (discovered 2 exits: *Acc / [Qua]) -1/Access (discovered 2 exits: *Sur / [Com]) To Epsilon Eridani History --------- Turn | Location | Event 17 | -11/Scrapyard | Discovered new exit (range 15) 53 | -11/Scrapyard | Entered Materials 273 | -10/Materials | Lost 4 parts (2n2w) 317 | -10/Materials | Build established: Mutant 588 | -10/Materials | Discovered new exit (range 13) 592 | -10/Materials | Identified exit to Mines 714 | -10/Materials | Entered Mines 748 | -10/Mines | Discovered new exit (range 15) 766 | -10/Mines | Met a Derelict testing a Signal Generator 821 | -10/Mines | A weapon hastily lodged in a ceiling crevice suddenly fell to the ground 1246 | -10/Mines | Met a Derelict shopkeep closing up shop 1766 | -10/Mines | Deemed a non-threat by the Exiles lab entrance 1824 | -10/Mines | Discovered new exit (range 5) 1831 | -10/Mines | Entered Exiles 1873 | -10/Exiles | Met 8R-AWN 1909 | -10/Exiles | Met EX-HEX 2053 | -10/Exiles | Met EX-DEC 2119 | -10/Exiles | Met EX-BIN 2148 | -10/Exiles | Aligned with FarCom system 2150 | -10/Exiles | Given EX-Vault access code 2192 | -10/Exiles | Opened EX-Vault 2278 | -10/Exiles | Found Prototype Leg 2279 | -10/Exiles | Identified Potential Leg 2290 | -10/Exiles | Found Prototype Energy Cannon 2291 | -10/Exiles | Identified Latent Energy Streamer 2296 | -10/Exiles | Found Prototype Processor 2306 | -10/Exiles | Identified 0b10 Alert Chip 2383 | -10/Exiles | Warned to stay clear of 0b10 Research branches 2503 | -10/Exiles | Discovered new exit (range 11) 2525 | -10/Exiles | Left Exiles lab with 0b10 Alert Chip 2525 | -10/Exiles | Entered Mines 2597 | -9/Mines | Met a Derelict who couldn't figure out how to use a Trap Extractor 2766 | -9/Mines | Assisted by bots powering up and referring to "LRC-V3" 3062 | -9/Mines | Discovered new exit (range 9) 3105 | -9/Mines | Entered Materials 3105 | -8/Materials | Accompanied by 1 ally 3105 | -8/Materials | Evolved 4 slots: Utility x4 3461 | -8/Materials | Build established: Hacker-Mutant 3569 | -8/Materials | Identified exit to Storage 3685 | -8/Materials | Entered Storage 3686 | -8/Storage | Identified exit to Recycling 4544 | -8/Storage | Lost 4 parts (1p1n2w) 4839 | -8/Storage | Assisted by bots powering up and referring to "LRC-V3" 5118 | -8/Storage | Build established: Commander-Mutant 5174 | -8/Storage | Discovered new exit (range 28) 5721 | -8/Storage | Repaired Adv. Treads 6085 | -8/Storage | First assault squad dispatched 6430 | -8/Storage | Build established: Hacker-Mutant 7736 | -8/Storage | Entered Factory 7736 | -7/Factory | Accompanied by 6 allies 7736 | -7/Factory | Evolved 2 slots: Utility x2 7951 | -7/Factory | Fabricated Imp. Linear Gravjet (x2) 8018 | -7/Factory | Discovered new exit (range 106) 8536 | -7/Factory | First assault squad dispatched 8704 | -7/Factory | Identified exit to Lower Caves 9086 | -7/Factory | Fabricated Hacking Suite? 9255 | -7/Factory | Fabricated Hacking Suite (x1) 9856 | -7/Factory | Discovered new exit (range 16) 9886 | -7/Factory | Repaired Imp. Utility Shielding 10067 | -7/Factory | Fabricated Hardcell Cannon (x2) 10582 | -7/Factory | Garrison activated, responded to threat 10604 | -7/Factory | Core integrity fell below 50% 10633 | -7/Factory | High security lockdown imminent 10657 | -7/Factory | Entered Lower Caves 10660 | -7/Lower Caves | Destroyed 9 combat bots 10685 | -7/Lower Caves | Attracted the attention of an 0b10 outpost 10724 | -7/Lower Caves | Lost 4 parts (2u2w) 10828 | -7/Lower Caves | Encountered a Warlord checkpoint 10985 | -7/Lower Caves | Learned Factory terminal intel 11092 | -7/Lower Caves | Discovered new exit (range 9) 11116 | -7/Lower Caves | Entered another Lower Caves area 11116 | -7/Lower Caves | Accompanied by 2 allies 11280 | -7/Lower Caves | Spotted B-75 Beast 11348 | -7/Lower Caves | Attracted the attention of an 0b10 checkpoint 11512 | -7/Lower Caves | Discovered new exit (range 13) 11539 | -7/Lower Caves | Entered Data Miner 11539 | -7/Data Miner | Accompanied by 1 ally 11540 | -7/Data Miner | Discovered new exit (range 6) 11562 | -7/Data Miner | Met Data Miner 11597 | -7/Data Miner | Learned location of Section 7 (-2) 11597 | -7/Data Miner | Acquired the access code to Warlord's prototype stash 11617 | -7/Data Miner | Received God Mode back door access code from Data Miner 11664 | -7/Data Miner | Entered Proximity Caves 11664 | -6/Proximity Caves | Accompanied by 1 ally 11804 | -6/Proximity Caves | Spotted B-75 Beast 11806 | -6/Proximity Caves | Escorted by Enhanced Grunt 11968 | -6/Proximity Caves | Discovered new exit (range 14) 11999 | -6/Proximity Caves | Entered Factory 11999 | -6/Factory | Accompanied by 2 allies 11999 | -6/Factory | Evolved 2 slots: Utility x2 12000 | -6/Factory | Loaded intel: 21 terminal locations 12331 | -6/Factory | Discovered new exit (range 42) 12359 | -6/Factory | Discovered new exit (range 51) 12461 | -6/Factory | Identified exit to Lower Caves 12461 | -6/Factory | Identified exit to Extension 12463 | -6/Factory | Central database locked down 12652 | -6/Factory | Build established: Wizard-Mutant 12667 | -6/Factory | Fabricated Exp. Utility Shielding (x1) 12703 | -6/Factory | Local fabrication network quarantined 12758 | -6/Factory | Fabricated Exp. Terrain Scanner? 12771 | -6/Factory | Fabricated Exp. Transmission Jammer? 12958 | -6/Factory | Sucked down chute 12958 | -6/Factory | Entered Waste 12973 | -6/Waste | EMP discharged 12978 | -6/Waste | Spotted C-40 Crusher 12982 | -6/Waste | Spotted C-40 Crusher 12995 | -6/Waste | Destroyed C-40 Crusher 12998 | -6/Waste | Spotted C-40 Crusher 13037 | -6/Waste | Destroyed C-40 Crusher 13065 | -6/Waste | Spotted C-40 Crusher 13067 | -6/Waste | Spotted C-40 Crusher 13073 | -6/Waste | EMP discharged 13073 | -6/Waste | System corruption reached 10% 13173 | -6/Waste | EMP discharged 13197 | -6/Waste | Spotted C-40 Crusher 13199 | -6/Waste | Discovered new exit (range 14) 13216 | -6/Waste | Entered Factory 13499 | -6/Factory | Fabricated Combat Drone Bay? 13615 | -6/Factory | Local fabrication network quarantined 13685 | -6/Factory | Fabricated Exp. Terrain Scan Processor (x1) 13856 | -6/Factory | Build established: Hacker-Mutant 14237 | -6/Factory | Entered Extension 14237 | -6/Extension | Accompanied by 1 ally 14238 | -6/Extension | Disrupted transfer network 14318 | -6/Extension | Rescued a captive Derelict 14510 | -6/Extension | Rescued a captive Derelict 14640 | -6/Extension | Crushed by falling debris 14641 | -6/Extension | System corruption reached 30% 14774 | -6/Extension | Rescued a captive Derelict 14776 | -6/Extension | Rescued a captive Derelict 15040 | -6/Extension | Rescued a captive Derelict 15057 | -6/Extension | Rescued a captive Derelict 15073 | -6/Extension | Rescued A7 15128 | -6/Extension | Discovered new exit (range 10) 15129 | -6/Extension | Discovered new exit (range 6) 15169 | -6/Extension | Entered Cetus 15169 | -6/Cetus | Accompanied by 7 allies 15174 | -6/Cetus | Acquired a Cetus Manufacturing Module code from A7 15198 | -6/Cetus | Spotted Cetus Guard 15198 | -6/Cetus | Spotted Cetus Guard 15200 | -6/Cetus | Spotted Cetus Guard 15206 | -6/Cetus | Spotted Cetus Guard 15211 | -6/Cetus | Destroyed Cetus Guard 15212 | -6/Cetus | Allies destroyed Cetus Guard 15221 | -6/Cetus | Allies destroyed Cetus Guard 15224 | -6/Cetus | Destroyed Cetus Guard 15339 | -6/Cetus | Started Cetus Manufacturing Module 15356 | -6/Cetus | Escorted A7 to Cetus Mainframe 15364 | -6/Cetus | Manufactured an Enhanced Grunt 15389 | -6/Cetus | Manufactured an Enhanced Grunt 15414 | -6/Cetus | Manufactured an Enhanced Grunt 15439 | -6/Cetus | Manufactured an Enhanced Grunt 15440 | -6/Cetus | Discovered new exit (range 16) 15464 | -6/Cetus | Manufactured an Enhanced Grunt 15476 | -6/Cetus | Spotted Cetus Guard 15476 | -6/Cetus | Spotted Cetus Guard 15478 | -6/Cetus | Spotted Cetus Guard 15480 | -6/Cetus | Spotted Cetus Guard 15484 | -6/Cetus | Allies destroyed Cetus Guard 15493 | -6/Cetus | Destroyed Cetus Guard 15494 | -6/Cetus | Allies destroyed Cetus Guard 15498 | -6/Cetus | Allies destroyed Cetus Guard 15510 | -6/Cetus | Core integrity fell below 50% 15515 | -6/Cetus | Discovered new exit (range 15) 15529 | -6/Cetus | Met Revision 17 15591 | -6/Cetus | Entered Archives 15591 | -6/Archives | Accompanied by 9 allies 15596 | -6/Archives | Received a hacking code to weaken MAIN.C 15665 | -6/Archives | Discovered new exit (range 16) 15781 | -6/Archives | Build established: Scavenger-Mutant 15807 | -6/Archives | Discovered new exit (range 16) 15832 | -6/Archives | Discovered new exit (range 22) 15937 | -6/Archives | Entered Hub_04(d) 15937 | -6/Hub_04(d) | Accompanied by 4 allies 15938 | -6/Hub_04(d) | Discovered new exit (range 14) 16259 | -6/Hub_04(d) | Disrupted transfer network 16438 | -6/Hub_04(d) | Network Hub disabled 16446 | -6/Hub_04(d) | Entered Factory 16446 | -5/Factory | Accompanied by 1 ally 16446 | -5/Factory | Evolved 2 slots: Utility x2 16466 | -5/Factory | Discovered new exit (range 8) 16574 | -5/Factory | Identified exit to Upper Caves 16941 | -5/Factory | Central database locked down 17004 | -5/Factory | Fabricated Exp. Propulsion Shielding (x1) 17053 | -5/Factory | Local fabrication network quarantined 17064 | -5/Factory | Fabricated Mni. Smartbomb Launcher (x1) 17227 | -5/Factory | Build established: Wizard-Mutant 17296 | -5/Factory | Repaired Exp. Utility Shielding 17321 | -5/Factory | Repaired Proton Missile Launcher 17376 | -5/Factory | Repaired Exp. Transmission Jammer 17431 | -5/Factory | Repaired Centrium Heavy Treads 17481 | -5/Factory | Repaired Imp. KE Penetrator 17531 | -5/Factory | Repaired Imp. KE Penetrator 17685 | -5/Factory | Repaired Centrium Medium Armor Plating 17754 | -5/Factory | Garrison activated, responded to threat 17813 | -5/Factory | Found Prototype Launcher 17814 | -5/Factory | Identified Tesla Bomb Launcher 17838 | -5/Factory | Build established: Hacker-Mutant 18027 | -5/Factory | Discovered new exit (range 28) 18294 | -5/Factory | Repaired Exp. Utility Shielding 18406 | -5/Factory | Repaired Centrium Heavy Treads 18470 | -5/Factory | Repaired Hvy. Plasma Cannon? 18489 | -5/Factory | System corruption reached 10% 18769 | -5/Factory | Repaired Imp. KE Penetrator? 19146 | -5/Factory | First assault squad dispatched 19170 | -5/Factory | Incoming assault squad redirected 19343 | -5/Factory | Destroyed 7 combat bots 19466 | -5/Factory | Incoming assault squad redirected 19776 | -5/Factory | Incoming assault squad redirected 20062 | -5/Factory | Incoming assault squad redirected 20075 | -5/Factory | Incoming assault squad redirected 20222 | -5/Factory | High security lockdown imminent 20237 | -5/Factory | Entered Upper Caves 20636 | -5/Upper Caves | Attracted the attention of an 0b10 checkpoint 20775 | -5/Upper Caves | Discovered new exit (range 28) 20839 | -5/Upper Caves | Entered another Upper Caves area 20848 | -5/Upper Caves | Discovered new exit (range 11) 20860 | -5/Upper Caves | Spotted B-75 Beast 20889 | -5/Upper Caves | Destroyed B-75 Beast 20935 | -5/Upper Caves | Encountered a Warlord checkpoint 20950 | -5/Upper Caves | Learned Factory emergency access door positions 21128 | -5/Upper Caves | Discovered new exit (range 49) 21285 | -5/Upper Caves | Entered Zhirov 21286 | -5/Zhirov | Discovered new exit (range 4) 21315 | -5/Zhirov | Met Zhirov 21354 | -5/Zhirov | Learned location of Quarantine (-2) 21354 | -5/Zhirov | Learned location of Testing (-3) 21354 | -5/Zhirov | Learned location of Command (-1) 21363 | -5/Zhirov | Zhirov requested help retrieving the SGEMP Prototype 21389 | -5/Zhirov | Found Alien Artifact 21390 | -5/Zhirov | Identified Integrated Reactor 21390 | -5/Zhirov | Installed Integrated Reactor, increased core energy generation (+2%) 21409 | -5/Zhirov | Found Alien Artifact 21604 | -5/Zhirov | Entered Proximity Caves 21903 | -4/Proximity Caves | Discovered new exit (range 22) 21953 | -4/Proximity Caves | Entered Factory 21953 | -4/Factory | Spotted B-86 Titan 21953 | -4/Factory | Evolved 2 slots: Propulsion x2 21967 | -4/Factory | Destroyed B-86 Titan 21998 | -4/Factory | Lost 3 parts (1u2w) 22156 | -4/Factory | Repaired Exp. Utility Shielding 22177 | -4/Factory | Fabricated Exp. Propulsion Shielding (x1) 22265 | -4/Factory | Repaired Centrium Medium Armor Plating 22276 | -4/Factory | Fabricated Assault Drone Bay? 22367 | -4/Factory | Repaired Particle Accelerator 22467 | -4/Factory | Repaired Imp. KE Penetrator 22583 | -4/Factory | Build established: Wizard-Mutant 22690 | -4/Factory | Central database locked down 22690 | -4/Factory | Identified exit to Upper Caves 22690 | -4/Factory | Identified exit to Armory 22749 | -4/Factory | Local fabrication network quarantined 22774 | -4/Factory | Fabricated Adv. Powered Armor (x1) 23341 | -4/Factory | Build established: Hacker-Mutant 23407 | -4/Factory | Found Quantum Capacitor 23453 | -4/Factory | First assault squad dispatched 23663 | -4/Factory | Discovered new exit (range 28) 24731 | -4/Factory | Incoming assault squad redirected 24876 | -4/Factory | Repaired Hvy. Siege Treads 24912 | -4/Factory | Repaired Adv. Powered Armor 24971 | -4/Factory | Incoming assault squad redirected 24981 | -4/Factory | Repaired Centrium Heavy Treads 25025 | -4/Factory | Repaired Matter Neutralizer 25064 | -4/Factory | Incoming assault squad redirected 25091 | -4/Factory | Garrison activated, responded to threat 25161 | -4/Factory | Repaired Hyp. Mass Driver 25176 | -4/Factory | Repaired Proton Missile Launcher 25223 | -4/Factory | Incoming assault squad redirected 25232 | -4/Factory | Incoming assault squad redirected 25427 | -4/Factory | Destroyed 12 combat bots 25506 | -4/Factory | Destroyed 7 combat bots 25538 | -4/Factory | Garrison activated, responded to threat 25617 | -4/Factory | High security lockdown imminent 25659 | -4/Factory | Destroyed 10 combat bots 25697 | -4/Factory | High security lockdown engaged 25748 | -4/Factory | Entered Upper Caves 26005 | -4/Upper Caves | Discovered new exit (range 29) 26067 | -4/Upper Caves | A Derelict revealed a hidden shortcut to "reach the base" 26081 | -4/Upper Caves | Entered Warlord 26129 | -4/Warlord | Discovered new exit (range 25) 26134 | -4/Warlord | Build established: Scavenger-Mutant 26138 | -4/Warlord | System corruption cleaned by Quarantine Array 26332 | -4/Warlord | Met Warlord 26347 | -4/Warlord | Opened Warlord's prototype stash 26357 | -4/Warlord | Warlord's base attacked by MAIN.C 26375 | -4/Warlord | Found Prototype Processor 26378 | -4/Warlord | Found Ghost Barrier 26509 | -4/Warlord | Found Prototype Energy Gun 26510 | -4/Warlord | Identified Vortex Shotgun 26515 | -4/Warlord | Found Vortex Shotgun 26519 | -4/Warlord | Found Vortex Shotgun 26521 | -4/Warlord | Found Vortex Shotgun 26707 | -4/Warlord | Warlord forces counterattacked 26732 | -4/Warlord | Opened side exit 26758 | -4/Warlord | Entered Proximity Caves 26851 | -3/Proximity Caves | Attracted the attention of an 0b10 checkpoint 26896 | -3/Proximity Caves | Spotted B-86 Titan 27157 | -3/Proximity Caves | Discovered new exit (range 24) 27179 | -3/Proximity Caves | Entered Research 27179 | -3/Research | Evolved 2 slots: Propulsion x1, Utility x1 27379 | -3/Research | Revision forces began assault on 0b10 27399 | -3/Research | Identified exit to Testing 27431 | -3/Research | Met up with Revision 17++ 27456 | -3/Research | Spotted B-86 Titan 27475 | -3/Research | Destroyed B-86 Titan 27527 | -3/Research | Fabricated Cmb. Antigrav System (x2) 27603 | -3/Research | Fabricated Adv. Powered Armor (x1) 27670 | -3/Research | Identified exit to Research 27732 | -3/Research | Identified Transdimensional Reconstructor 27732 | -3/Research | Identified Spectral Analyzer 27758 | -3/Research | Repaired Exp. Utility Shielding 27793 | -3/Research | Repaired Adv. Powered Armor 27834 | -3/Research | Repaired Exp. Propulsion Shielding 27863 | -3/Research | Repaired Hvy. Shock Bomb Launcher 27879 | -3/Research | Research terminal network offline 27977 | -3/Research | Repaired Imp. Energy Mantle 27982 | -3/Research | Build established: Hacker-Scout 28174 | -3/Research | Entered Testing 28175 | -3/Testing | Maximum security lockdown engaged 28198 | -3/Testing | Discovered exit to Research (range 27) 28264 | -3/Testing | Entered Research 28264 | -2/Research | Warlord forces began assault on 0b10 28264 | -2/Research | Evolved 2 slots: Utility x2 28346 | -2/Research | Fabricated Enh. Flamer (x1) 28374 | -2/Research | Research machine network offline 28421 | -2/Research | Fabricated Enh. Flamer (x1) 28502 | -2/Research | Borebot progress halted 28632 | -2/Research | Borebot progress halted 28763 | -2/Research | Build established: Mechanic-Mutant 28850 | -2/Research | Spotted Striker 28867 | -2/Research | Spotted Striker 28877 | -2/Research | Found Prototype Device 28878 | -2/Research | Identified Exp. Shock Absorption System 28893 | -2/Research | Met up with Warlord 29009 | -2/Research | Discovered new exit (range 22) 29034 | -2/Research | Spotted Striker 29034 | -2/Research | Spotted Striker 29035 | -2/Research | Spotted Executioner 29041 | -2/Research | Destroyed Striker 29057 | -2/Research | Destroyed Executioner 29093 | -2/Research | Discovered new exit (range 5) 29115 | -2/Research | Entered Access 29115 | -1/Access | Evolved 2 slots: Power x1, Utility x1 29438 | -1/Access | Discovered new exit (range 28) 29475 | -1/Access | Fabricated Cmb. Linear Gravjet? 29803 | -1/Access | Identified exit to Surface 30420 | -1/Access | Repaired Exp. Utility Shielding 30602 | -1/Access | Spotted B-99 Colossus 30743 | -1/Access | Build established: Hacker-Scout 30792 | -1/Access | Fabricated Enh. Flamer (x1) 30974 | -1/Access | Spotted B-99 Colossus 31001 | -1/Access | Fabricated Enh. Flamer? 31119 | -1/Access | Fabricated Enh. Flamer (x1) 31145 | -1/Access | Fabricated Enh. Flamer (x1) 31314 | -1/Access | System corruption reached 10% 31371 | -1/Access | Lost 5 parts (1p1u3w) 31493 | *** | Escaped! Last Messages --------------- 31353_ G-73 Enforcer destroyed. 31355_ Acquired Lgt. Quantum Reactor. 31358_ Acquired 88 matter. 31379_ System corrupted: Matter fused (-10). 31385_ Acquired 34 matter. 31386_ Acquired 29 matter. 31408_ System corrupted: Matter fused (-7). 31431_ K-01 Serf cleans the Wave Collapse Detector. 31435_ System corrupted: Energy discharge (-200). 31448_ System corrupted: Enh. Nova Cannon targeting data glitched. 31448_ K-01 Serf destroyed. 31450_ Acquired 25 matter. 31450_ K-01 Serf destroyed. 31451_ System corrupted: Matter fused (-9). 31452_ Acquired 30 matter. 31453_ R-10 Processor collects Unknown Wheel. 31472_ System corrupted: Heat flow error (+102). 31485_ Acquired 91 matter. 31485_ Acquired 79 matter. 31487_ System corrupted: Heat flow error (+142). Map ----- +----------------------------------------------------+ | ?## # #####??#####????????????????????? | | """" ## # #?# ? #????????????????????? | | """" ## # ###?? ? ? #????????????????????? | | """" + + #?? ? ?# ???????????????????? | | """" ## # ### #? ?? ???????????????? | | """" ## # ### ? ? ?? ? ? ????????????????? | | ?## #########?? ?? ####?##??????????????? | | ?# ##?##?###? ? ? ?###?##???????????????? | | #####?#?# ##??###?## ? ?######??????????????? | | ??###?### ########????? ? ??##?##??????????????? | | #?#####?# #############+#?##??###?##?????????????? | | #?#####?# # s s s ? ? ? ?????????????? | | ?#?##?### # ss ? ?? ? ????????????? | | ######### # ########?##?#######?####????????????? | | = ## # ##?###?#??##?##?#####???#???????????? | | ## # ##?####?####?######?####????????????? | | ## # ##?####?##?##??##########???????????? | | ## # #?#####?#?##????#?###?#?#???????????? | | ## # #?#?#####?#####?#?#???##?#??????????? | | ## # ####### ############??####??????????? | | ##w# """T""" """" ?? ??????????? | | "" ## # "" """ """" BB ?????????? | | "" [## # """" BB ?#??????? | | " ! ## # """" ? ???? | | "" + # "" """" ???? | | "" #### @" """" ? ? | | ###########% """" ? ? | | ##?# % k """" BB #####?#?# | | #### """" BB ##?#### | | " ####% """" ###?### | | """ #### ####### ###########################? | | """ #### ###################?#?############# | | " #### ########?##################Y####### | | #### ########################## # | | #### ########################## # | | #### ########################## " # | | #### ##################### # """ # | | #### = # ? ### | | #### Y + """ # ? | | ##################"####+########## # " # | | ################### ########### # | | ################### # ###### # | | ################### = # ################# | | ########?####### # ################ | | ################ # # | | ################ " " # + | | ################ ""R"" !# # | | ################ """"" # # ############ | | # ##########"####### ############# | | # ### + ############# | +----------------------------------------------------+ Best States ------------- Heat Dissipation 61 Coolant Potential 120 Energy Generation 48 Energy Capacity 1695 Matter Stores 300 Matter Capacity 300 Sight Range 24 Robot Scan Range 20 Terrain Scan Range 30 Terrain Scan Density 1010 ECM Strength 3 Jamming Range 22 Armor Coverage 1200 Resistance: KI 25 Resistance: TH 25 Resistance: EM 15 Core Shielding 20 Propulsion Shielding 90 Utility Shielding 90 Weapon Shielding 66 Weapon Cycling 15 Evasion (%) 69 Recoil Reduction 4 Particle Charging 30 Offensive Hacking 47 Defensive Hacking 32 Item Schematics ----------------- Lrg. Storage Unit | -8/Materials | Hacked Imp. Utility Shielding | -8/Storage | Hacked Imp. Propulsion Shielding | -8/Storage | Hacked Lrn. Sensor Array | -7/Factory | Scanalyzed Hacking Suite | -7/Factory | Scanalyzed System Shield | -7/Factory | Scanalyzed Shock Absorption System | -7/Factory | Hacked Combat Drone Bay | -7/Data Miner | Free Lgt. Regenerative Plating | -7/Data Miner | Free Exp. Flexi-carbon Leg | -7/Data Miner | Free Exp. Terrain Scanner | -7/Data Miner | Free Exp. Transmission Jammer | -7/Data Miner | Free Exp. ECM Suite | -7/Data Miner | Free Exp. Utility Shielding | -6/Factory | Hacked Exp. Terrain Scan Processor | -6/Factory | Hacked System Restoration Module | -6/Factory | Hacked Cmb. Airjet | -6/Extension | Hacked Adv. Trap Extractor | -6/Extension | Hacked Mni. Smartbomb Launcher | -5/Factory | Hacked Exp. Propulsion Shielding | -5/Factory | Hacked Adv. Focal Shield | -5/Factory | Hacked Assault Drone Bay | -5/Zhirov | Free Exp. Heat Sink | -5/Zhirov | Free Exp. Optical Array | -5/Zhirov | Free Imp. Arc Thrower | -5/Zhirov | Free Cmb. Antigrav System | -4/Factory | Hacked Adv. Powered Armor | -4/Factory | Hacked Graviton Cannon | -4/Factory | Hacked Adv. Core Analyzer | -4/Factory | Hacked Adv. Force Field | -4/Factory | Hacked Adv. Overload Amplifier | -4/Factory | Hacked HERF Cannon | -4/Factory | Hacked Adv. Reaction Control System | -3/Research | Hacked Enh. Nova Cannon | -3/Research | Hacked Enh. Flamer | -3/Research | Scanalyzed Imp. Weapon Shielding | -3/Research | Scanalyzed Cmb. Linear Gravjet | -1/Access | Hacked Adv. Heavy Siege Treads | -1/Access | Hacked Robot Schematics ------------------ S-27 Virus | -7/Data Miner | Free G-50 Soldier | -7/Data Miner | Free H-66 Slayer | -7/Data Miner | Free P-70 Sage | -7/Data Miner | Free I-36 Angel | -7/Data Miner | Free Fabricated ------------ Imp. Linear Gravjet | x2 | -7/Factory | Preloaded Hacking Suite | x1 | -7/Factory Hacking Suite | x1 | -7/Factory Hardcell Cannon | x2 | -7/Factory | Preloaded Exp. Utility Shielding | x1 | -6/Factory Exp. Terrain Scanner | x1 | -6/Factory Exp. Transmission Jammer | x1 | -6/Factory Combat Drone Bay | x1 | -6/Factory Exp. Terrain Scan Processor | x1 | -6/Factory Exp. Propulsion Shielding | x1 | -5/Factory Mni. Smartbomb Launcher | x1 | -5/Factory Exp. Propulsion Shielding | x1 | -4/Factory Assault Drone Bay | x1 | -4/Factory Adv. Powered Armor | x1 | -4/Factory Cmb. Antigrav System | x2 | -3/Research Adv. Powered Armor | x1 | -3/Research Enh. Flamer | x1 | -2/Research Enh. Flamer | x1 | -2/Research Cmb. Linear Gravjet | x2 | -1/Access Enh. Flamer | x1 | -1/Access Enh. Flamer | x1 | -1/Access Enh. Flamer | x1 | -1/Access Enh. Flamer | x1 | -1/Access Alien Tech Used ----------------- Integrated Reactor Achievements -------------- Most Wanted Challenges ------------ None Game ------ Seed ArmorHardenedMinigun Manual? 0 Play Time 07:02:55 Cumulative 635.4 hours Start 2019.10.21 @ 18:26:16 End 2019.10.22 @ 18:55:49 Sessions 5 Manual Loads 0 Difficulty Rogue Special Mode None Game No. 152 Rogue 152 Adventurer 0 Explorer 0 Win Type 0 Total 22 Types 14/0/2/3/2/0/1 Lore% 95 Gallery% 95 Achievement% 86 Wizard Run 0 Options --------- ASCII 0 Keyboard 1 Movement Numpad Keybinds 0 Fullscreen 1 Font 18/SmallcapsGlow Map View 76x50 Tactical HUD 1 Map Filters NONE Filters NONE Steam 1 RUN: f6b9c165-7e1e-4665-a7f6-dfef6bab30d6